fUSD/lending_fUSD_20260226
["ID","MTS","AMOUNT","RATE_DAILY","PERIOD"]
[406680032,1772071845993,-1501.66913587,0.00014795,2]
[406680033,1772071846002,-1507.14480437,0.00014795,2]
[406680034,1772071846011,-1043.57929262,0.00014795,2]
[406680035,1772071846021,-1500.0,0.00014795,2]
[406680036,1772071846031,-1500.0,0.00014795,2]
[406680037,1772071846040,-173.95657067,0.00014848,2]
[406680038,1772071846050,-160.0,0.00014848,2]
[406680039,1772071846060,-153.38,0.00014889,2]
[406680041,1772071846071,-5750.26869106,0.00014924,2]
[406680042,1772071846081,-152.0,0.00014942,21]
[406680043,1772071846091,-250.0,0.00015,2]
[406680047,1772071846224,-7383.73,0.00015068,2]
[406680048,1772071846235,-175.668016,0.00015068,2]
[406680049,1772071846245,-10039.86886893,0.0001512,2]
[406680050,1772071846254,-152.0,0.00015122,22]
[406680051,1772071846265,-152.0,0.00015302,23]
[406680052,1772071846274,-1827.89337357,0.00015342,2]
[406680053,1772071846283,-2000.0,0.00015342,2]
[406680054,1772071846292,-2000.0,0.00015342,2]
[406680055,1772071846303,-152.0,0.00015481,24]
[406680056,1772071846318,-1000.0,0.00015507,2]
[406680057,1772071846326,-169.570929,0.00015585,2]
[406680058,1772071846336,-169.570929,0.00015585,2]
[406680059,1772071846346,-169.570929,0.00015585,2]
[406680060,1772071846355,-169.570929,0.00015585,2]
[406680061,1772071846365,-18457.91106556,0.00015585,2]
[406680062,1772071846375,-3342.45896472,0.00015599,2]
[406680063,1772071846387,-201.4961393,0.00015607,2]
[406680064,1772071846397,-175.036731,0.00015616,7]
[406680065,1772071846407,-261.864285,0.00015633,7]
[406680066,1772071846417,-1140.95472283,0.00015643,2]
[406680067,1772071846426,-152.0,0.00015661,25]
[406680068,1772071846435,-7383.73,0.00015753,2]
[406680069,1772071846445,-3643.09,0.00015753,2]
[406680070,1772071846454,-152.0,0.00015841,26]
[406680071,1772071846463,-1211.0,0.00015873,2]
[406680072,1772071846472,-920.0,0.00015873,2]
[406680073,1772071846483,-2456.0,0.00015873,2]
[406680074,1772071846494,-413.0,0.00015873,2]
[406680075,1772071846503,-5983.0,0.00015873,2]
[406680076,1772071846513,-2500.0,0.0001589,2]
[406680077,1772071846522,-2500.0,0.0001589,2]
[406680078,1772071846531,-1000.0,0.00015895,2]
[406680079,1772071846540,-150.0,0.000159,2]
[406680080,1772071846552,-150.0,0.000159,2]
[406680081,1772071846562,-150.0,0.000159,2]
[406680082,1772071846571,-150.0,0.000159,2]
[406680083,1772071846580,-150.0,0.000159,2]
[406680084,1772071846589,-1090.2523289,0.00015997,2]
[406680085,1772071846598,-152.0,0.0001602,27]
[406680086,1772071846607,-151.0,0.00016024,2]
[406680087,1772071846616,-151.0,0.00016024,2]
[406680088,1772071846627,-7947.48,0.00016116,2]
[406680089,1772071846637,-5436.70489032,0.0001615,2]
[406680090,1772071846645,-152.0,0.000162,28]
[406680091,1772071846655,-174.81061234,0.000162,5]
[406680092,1772071846664,-1591.1940946,0.000162,5]
[406680093,1772071846673,-474.08053912,0.00016227,2]
[406680094,1772071846682,-1000.0,0.00016282,2]
[406680095,1772071846691,-900.0,0.00016356,2]
[406680096,1772071846700,-500.0,0.00016356,2]
[406680097,1772071846709,-500.0,0.00016356,2]
[406680098,1772071846718,-166.66,0.00016394,2]
[406680099,1772071846727,-5750.26869106,0.00016412,2]
[406680100,1772071846736,-500.0,0.00016438,2]
[406680101,1772071846745,-500.0,0.00016438,3]
[406680102,1772071846755,-500.0,0.00016438,4]
[406680104,1772071846765,-500.0,0.00016438,5]
[406680106,1772071846775,-500.0,0.00016438,6]
[406680108,1772071846784,-500.0,0.00016438,7]
[406680110,1772071846794,-500.0,0.00016438,8]
[406680112,1772071846803,-500.0,0.00016438,9]
[406680113,1772071846812,-500.0,0.00016438,10]
[406680114,1772071846822,-500.0,0.00016438,11]
[406680115,1772071846831,-500.0,0.00016438,12]
[406680116,1772071846840,-500.0,0.00016438,13]
[406680117,1772071846850,-500.0,0.00016438,14]
[406680118,1772071846860,-500.0,0.00016438,15]
[406680119,1772071846870,-7383.73,0.00016438,2]
[406680120,1772071846880,-151.0,0.00016438,2]
[406680121,1772071846890,-151.0,0.00016438,2]
[406680122,1772071846900,-151.000001,0.00016438,2]
[406680124,1772071846910,-156.494645,0.00016438,2]
[406680126,1772071846920,-174.402938,0.00016438,2]
[406680128,1772071846929,-1999.0,0.00016438,2]
[406680129,1772071846940,-1190.62156941,0.00016438,2]
[406680130,1772071846951,-3007.20418576,0.00016438,2]
[406680131,1772071846960,-153.38,0.00016444,2]
[406680132,1772071846969,-1000.0,0.0001667,2]
[406680133,1772071846979,-859.0,0.00016683,2]
[406680134,1772071846988,-694.9,0.00016712,2]
[406680135,1772071846997,-167.07,0.00016712,2]
[406680136,1772071847006,-160.0,0.0001672,2]
[406680137,1772071847015,-2844.0,0.0001672,2]
[406680138,1772071847025,-843.0,0.0001672,2]
[406680139,1772071847034,-18457.91106556,0.00016743,2]
[406680140,1772071847043,-3342.45896472,0.00016749,2]
[406680141,1772071847053,-166.66,0.00016935,2]
[406680142,1772071847063,-374.0,0.00016939,2]
[406680143,1772071847072,-150.0,0.00016943,2]
[406680144,1772071847081,-150.0,0.00016943,2]
[406680145,1772071847090,-150.05,0.00016943,2]
[406680146,1772071847099,-150.0,0.00016943,2]
[406680147,1772071847109,-150.0,0.00016943,2]
[406680148,1772071847118,-150.0,0.00016943,2]
[406680149,1772071847127,-150.068,0.00016943,2]
[406680150,1772071847136,-150.0,0.00016943,2]
[406680151,1772071847145,-3556.732,0.00016943,2]
[406680152,1772071847154,-1340.0,0.00016943,2]
[406680153,1772071847163,-1049.205,0.00016943,2]
[406680154,1772071847173,-618.0,0.00016943,2]
[406680155,1772071847182,-150.175,0.00016943,2]
[406680156,1772071847191,-1280.071,0.00016943,2]
[406680157,1772071847200,-374.0,0.00016982,2]
[406680158,1772071847210,-694.9,0.00016986,2]
[406680159,1772071847219,-374.0,0.00016999,2]
[406680160,1772071847228,-300.0,0.00017,2]
[406680161,1772071847237,-845.0,0.00017003,2]
[406680162,1772071847247,-160.0,0.0001704,2]
[406680163,1772071847257,-1000.0,0.00017058,2]
[406680164,1772071847267,-374.0,0.00017142,2]
[406680165,1772071847276,-238.98825351,0.00017174,2]
[406680166,1772071847286,-694.9,0.0001726,2]
[406680167,1772071847296,-374.0,0.00017282,2]
[406680168,1772071847308,-260.96107048,0.00017342,2]
[406680169,1772071847319,-374.0,0.00017351,2]
[406680170,1772071847328,-350.0,0.00017357,3]
[406680171,1772071847338,-1495.0,0.0001736,2]
[406680172,1772071847349,-2842.0,0.0001736,2]
[406680173,1772071847359,-374.0,0.00017393,2]
[406680174,1772071847368,-374.0,0.00017442,2]
[406680175,1772071847378,-374.0,0.00017471,2]
[406680176,1772071847388,-166.66,0.00017476,2]
[406680177,1772071847397,-374.0,0.00017482,2]
[406680178,1772071847407,-171.41,0.00017486,2]
[406680179,1772071847416,-694.9,0.00017534,2]
[406680180,1772071847426,-374.0,0.00017618,2]
[406680181,1772071847436,-1163.0674932,0.0001764,2]
[406680182,1772071847445,-190.0,0.0001768,2]
[406680183,1772071847454,-150.0,0.00017698,2]
[406680184,1772071847464,-500.0,0.00017698,2]
[406680185,1772071847473,-156.49815943,0.00017698,2]
[406680186,1772071847482,-246.91345338,0.00017698,2]
[406680187,1772071847492,-900.0,0.00017726,7]
[406680188,1772071847500,-150.0,0.00017753,2]
[406680189,1772071847509,-500.0,0.00017753,2]
[406680190,1772071847519,-150.0,0.00017808,2]
[406680191,1772071847527,-500.0,0.00017808,2]
[406680192,1772071847537,-694.9,0.00017808,2]
[406680193,1772071847547,-500.0,0.00017808,2]
[406680194,1772071847556,-800.0,0.00017808,2]
[406680195,1772071847565,-1273.60841,0.0001782,2]
[406680196,1772071847575,-1273.60842,0.0001782,2]
[406680197,1772071847584,-374.0,0.00017821,2]
[406680198,1772071847594,-350.0,0.00017845,2]
[406680199,1772071847603,-164.99938666,0.00017862,2]
[406680200,1772071847612,-500.0,0.00017862,2]
[406680201,1772071847623,-500.0,0.00017863,2]
[406680202,1772071847633,-187.550991,0.0001787,2]
[406680203,1772071847643,-10186.8849,0.0001787,2]
[406680204,1772071847652,-761.17059446,0.0001789,2]
[406680205,1772071847661,-374.0,0.00017893,2]
[406680206,1772071847671,-363.69348598,0.000179,3]
[406680207,1772071847680,-224.83939755,0.000179,2]
[406680208,1772071847690,-262.094236,0.000179,2]
[406680209,1772071847705,-262.094236,0.000179,2]
[406680210,1772071847720,-262.094236,0.000179,2]
[406680211,1772071847730,-262.094236,0.000179,2]
[406680212,1772071847739,-3342.45896472,0.000179,2]
[406680213,1772071847749,-18457.91106556,0.000179,2]
[406680214,1772071847759,-5750.26869106,0.000179,2]
[406680215,1772071847768,-18151.59689484,0.000179,2]
[406680216,1772071847908,-500.0,0.00017917,2]
[406680217,1772071847918,-500.0,0.00017918,2]
[406680218,1772071847927,-500.0,0.00017972,2]
[406680219,1772071847937,-500.0,0.00017972,2]
[406680220,1772071847947,-153.22549056,0.0001799,2]
[406680221,1772071847956,-961.64168307,0.00017999,3]
[406680222,1772071847966,-300.0,0.00017999,2]
[406680223,1772071847975,-309.62563364,0.00017999,2]
[406680224,1772071847985,-15000.0,0.00018,2]
[406680225,1772071847995,-220.9,0.00018,8]
[406680226,1772071848005,-1140319.80567028,0.00018,2]
[406680227,1772071848014,-1000.0,0.00018,2]
[406680228,1772071848024,-1000.0,0.00018,2]
[406680229,1772071848033,-1000.0,0.00018,2]
[406680230,1772071848042,-1000.0,0.00018,2]
[406680231,1772071848051,-1000.0,0.00018,2]
[406680232,1772071848063,-1000.0,0.00018,2]
[406680233,1772071848074,-745.26998688,0.00018,2]
[406680234,1772071848084,-163645.16714448,0.00018,2]
[406680235,1772071848181,-460.69560389,0.0001129,2]
[406680236,1772071848191,-539.30439611,0.00018,2]
[406680237,1772071848203,-562.39994,0.00018,2]
[406680238,1772071848214,-345.0,0.00018,2]
[406680239,1772071848226,-322649.27979958,0.00018,2]
[406680240,1772071848239,-607.18552019,0.00018,2]
[406680241,1772071848251,-2000.1049965,0.00018,2]
[406680242,1772071848262,-12048.82808119,0.00018,2]
[406680243,1772071848277,-3689.23055064,0.00018,2]
[406680244,1772071848289,-1897.46000004,0.00018,2]
[406680245,1772071848303,-2684.3835031,0.00018,2]
[406680246,1772071848415,-6031.0,0.00018,2]
[406680247,1772071848430,-3187.71851058,0.00018,2]
[406680248,1772071848442,-2591.50000012,0.00018,2]
[406680255,1772072145072,788.4787267,7.3e-05,2]
[406680256,1772072145949,2204.76901203,7.3e-05,2]
[406680257,1772072146817,689.9145343,7.3e-05,2]
[406680258,1772072146844,185.58482038,7.3e-05,2]
[406680259,1772072146870,2203.56865514,7.3e-05,2]
[406680260,1772072146897,185.58482038,7.3e-05,2]
[406680261,1772072146924,466.63105015,7.3e-05,2]
[406680292,1772072422354,150.0,0.00011233,120]
[406680330,1772072774461,890.0,0.0001789,120]
[406680502,1772072994404,13558.0,0.0001789,120]
[406680506,1772073031458,-712.750005,7.233e-05,2]
[406680507,1772073031470,-378.23771447,7.233e-05,2]
[406680508,1772073031566,-3718.01228053,7.233e-05,2]
[406680509,1772073031575,-893.974,7.234e-05,2]
[406680510,1772073031585,-250.0,7.234e-05,2]
[406680511,1772073031594,-203.59832255,7.234e-05,2]
[406680512,1772073031603,-250.0,7.254e-05,2]
[406680513,1772073031617,-500.0,7.28e-05,2]
[406680514,1772073031626,-167.60806428,7.28e-05,2]
[406680515,1772073031638,-540.12750576,7.28e-05,2]
[406680516,1772073031649,-540.12750576,7.28e-05,2]
[406680517,1772073031659,-540.12750576,7.28e-05,2]
[406680518,1772073031672,-540.12750576,7.28e-05,2]
[406680519,1772073031682,-540.12750576,7.28e-05,2]
[406680520,1772073031691,-540.12750576,7.28e-05,2]
[406680521,1772073031700,-540.12750576,7.28e-05,2]
[406680522,1772073031710,-540.12750576,7.28e-05,2]
[406680523,1772073031720,-540.12750576,7.28e-05,2]
[406680524,1772073031730,-540.12750576,7.28e-05,2]
[406680526,1772073031739,-540.12750576,7.28e-05,2]
[406680527,1772073031748,-540.12750576,7.28e-05,2]
[406680528,1772073031758,-540.12750576,7.28e-05,2]
[406680529,1772073031767,-540.12750576,7.28e-05,2]
[406680530,1772073031776,-540.12750576,7.28e-05,2]
[406680531,1772073031786,-540.12750576,7.28e-05,2]
[406680532,1772073031796,-540.12750576,7.28e-05,2]
[406680533,1772073031806,-540.12750576,7.28e-05,2]
[406680534,1772073031821,-540.12750576,7.28e-05,2]
[406680535,1772073031830,-540.12750576,7.28e-05,2]
[406680536,1772073031841,-540.12750576,7.28e-05,2]
[406680537,1772073031850,-540.12750576,7.28e-05,2]
[406680538,1772073031861,-540.12750576,7.28e-05,2]
[406680539,1772073031872,-540.12750576,7.28e-05,2]
[406680540,1772073031882,-540.12750576,7.28e-05,2]
[406680541,1772073031893,-540.12750576,7.28e-05,2]
[406680542,1772073031903,-540.12750576,7.28e-05,2]
[406680543,1772073031913,-540.12750576,7.28e-05,2]
[406680544,1772073031923,-540.12750576,7.28e-05,2]
[406680545,1772073031933,-540.12750576,7.28e-05,2]
[406680546,1772073031944,-540.12750576,7.28e-05,2]
[406680547,1772073031953,-540.12750576,7.28e-05,2]
[406680548,1772073031963,-540.12750576,7.28e-05,2]
[406680549,1772073031974,-540.12750576,7.28e-05,2]
[406680550,1772073031984,-540.12750576,7.28e-05,2]
[406680551,1772073031994,-540.12750576,7.28e-05,2]
[406680552,1772073032008,-540.12750576,7.28e-05,2]
[406680553,1772073032017,-540.12750576,7.28e-05,2]
[406680554,1772073032027,-540.12750576,7.28e-05,2]
[406680555,1772073032037,-540.12750576,7.28e-05,2]
[406680556,1772073032048,-540.12750576,7.28e-05,2]
[406680557,1772073032058,-540.12750576,7.28e-05,2]
[406680558,1772073032068,-540.12750576,7.28e-05,2]
[406680559,1772073032078,-540.12750576,7.28e-05,2]
[406680560,1772073032087,-540.12750576,7.28e-05,2]
[406680561,1772073032099,-540.12750576,7.28e-05,2]
[406680562,1772073032110,-540.12750576,7.28e-05,2]
[406680563,1772073032119,-540.12750576,7.28e-05,2]
[406680564,1772073032129,-540.12750576,7.28e-05,2]
[406680565,1772073032140,-540.12750576,7.28e-05,2]
[406680566,1772073032149,-540.12750576,7.28e-05,2]
[406680567,1772073032159,-540.12750576,7.28e-05,2]
[406680568,1772073032168,-1200.0,7.28e-05,2]
[406680569,1772073032178,-150.0,7.28e-05,2]
[406680570,1772073032187,-300.0,7.28e-05,2]
[406680571,1772073032200,-13627.43198782,7.281e-05,2]
[406680572,1772073032215,-552.94803067,7.281e-05,2]
[406680593,1772073037542,-1086.8797393,7.281e-05,2]
[406680594,1772073037597,-302.38540097,7.281e-05,2]
[406680673,1772073039746,-1984430.35484124,7.281e-05,2]
[406680674,1772073039756,-178.64639911,7.3e-05,2]
[406680675,1772073039766,-4122.55342318,7.3e-05,2]
[406680676,1772073039775,-699.44476874,7.3e-05,2]
[406680677,1772073039785,-1918.23758946,7.3e-05,2]
[406680678,1772073039797,-381.71,7.452e-05,2]
[406680679,1772073039809,-9999.99,7.452e-05,2]
[406680680,1772073039818,-9999.99,7.452e-05,2]
[406680681,1772073039829,-299.99,7.452e-05,2]
[406680682,1772073039840,-150.99,7.452e-05,2]
[406680683,1772073039850,-150.99,7.452e-05,2]
[406680684,1772073039859,-155.485,7.48e-05,2]
[406680685,1772073039869,-506.9207773,7.481e-05,2]
[406680686,1772073039879,-1050.0,7.957e-05,2]
[406680687,1772073039889,-250.0,7.957e-05,2]
[406680688,1772073039900,-1680.0,8.008e-05,2]
[406680689,1772073039909,-155.0,8.228e-05,2]
[406680690,1772073039919,-500.0,8.239e-05,2]
[406680691,1772073039928,-166.67,8.358e-05,2]
[406680692,1772073039938,-2351.0,8.808e-05,2]
[406680693,1772073039948,-706.0,8.914e-05,2]
[406680694,1772073039959,-155.0,8.976e-05,2]
[406680695,1772073039969,-166.67,9.047e-05,2]
[406680696,1772073039978,-163.0,9.072e-05,2]
[406680697,1772073039988,-1500.0,9.094e-05,2]
[406680698,1772073039997,-225.97,9.3e-05,2]
[406680699,1772073040007,-250.0,9.557e-05,2]
[406680700,1772073040016,-9999.99,9.67e-05,2]
[406680701,1772073040026,-3292.0,9.689e-05,2]
[406680702,1772073040035,-166.67,9.737e-05,2]
[406680703,1772073040044,-224.83939756,0.0001,2]
[406680704,1772073040054,-151.0,0.0001,2]
[406680705,1772073040064,-151.0,0.0001,2]
[406680706,1772073040073,-151.0,0.0001,2]
[406680707,1772073040083,-151.0,0.0001,2]
[406680708,1772073040094,-151.0,0.0001,2]
[406680709,1772073040104,-151.0,0.0001,2]
[406680710,1772073040114,-151.0,0.0001,2]
[406680711,1772073040124,-151.0,0.0001,2]
[406680712,1772073040133,-151.0,0.0001,2]
[406680713,1772073040143,-151.0,0.0001,2]
[406680714,1772073040153,-151.0,0.0001,2]
[406680715,1772073040163,-151.0,0.0001,2]
[406680716,1772073040173,-151.0,0.0001,2]
[406680717,1772073040182,-151.0,0.0001,2]
[406680718,1772073040192,-151.0,0.0001,2]
[406680719,1772073040202,-151.0,0.0001,2]
[406680720,1772073040212,-151.0,0.0001,2]
[406680721,1772073040222,-151.0,0.0001,2]
[406680722,1772073040231,-151.0,0.0001,2]
[406680723,1772073040241,-153.4251829,0.0001,2]
[406680724,1772073040250,-503.15080927,0.0001,2]
[406680725,1772073040259,-167.86555459,0.0001,2]
[406680726,1772073040269,-167443.46466925,0.00010154,2]
[406680727,1772073040278,-500.0,0.000103,2]
[406680728,1772073040287,-518.88437853,0.000103,2]
[406680729,1772073040297,-515.09383157,0.000103,2]
[406680730,1772073040306,-500.0,0.000103,2]
[406680731,1772073040315,-739.84545781,0.000103,2]
[406680732,1772073040324,-587.30475258,0.000103,2]
[406680733,1772073040334,-155.0,0.00010472,2]
[406680734,1772073040343,-4336.0,0.00010658,2]
[406680735,1772073040353,-5750.26869108,0.000109,2]
[406680736,1772073040363,-5750.26869106,0.000109,2]
[406680737,1772073040372,-5750.26869106,0.000109,2]
[406680738,1772073040382,-3643.09,0.00010959,2]
[406680739,1772073040393,-166.66,0.00010959,2]
[406680740,1772073040402,-166.66,0.00011068,2]
[406680741,1772073040412,-3342.45896472,0.00011099,2]
[406680742,1772073040422,-3342.45896472,0.00011099,2]
[406680743,1772073040431,-3342.45896472,0.00011099,2]
[406680744,1772073040441,-3342.45896472,0.00011099,2]
[406680745,1772073040450,-166.66,0.00011178,2]
[406680746,1772073040460,-150.0,0.00011233,2]
[406680747,1772073040470,-5771.18,0.00011233,2]
[406680748,1772073040480,-166.66,0.00011288,2]
[406680749,1772073040489,-166.66,0.00011397,2]
[406680750,1772073040499,-166.66,0.00011507,2]
[406680751,1772073040508,-152.0,0.00011708,3]
[406680752,1772073040517,-5750.26869106,0.00011779,2]
[406680753,1772073040527,-153.38,0.00011836,2]
[406680754,1772073040536,-152.0,0.00011888,4]
[406680755,1772073040546,-3342.45896472,0.0001204,2]
[406680756,1772073040555,-152.0,0.00012068,5]
[406680757,1772073040565,-152.0,0.00012247,6]
[406680758,1772073040574,-1000.0,0.00012362,2]
[406680759,1772073040584,-152.0,0.00012427,7]
[406680760,1772073040594,-277.35679052,0.00012594,2]
[406680761,1772073040603,-152.0,0.00012607,8]
[406680762,1772073040613,-224.83939755,0.00012626,2]
[406680763,1772073040623,-152.0,0.00012786,9]
[406680764,1772073040632,-500.0,0.0001289,2]
[406680765,1772073040642,-501.84617308,0.0001289,2]
[406680766,1772073040652,-500.0,0.0001289,2]
[406680767,1772073040663,-500.0,0.0001289,2]
[406680768,1772073040674,-500.0,0.0001289,2]
[406680769,1772073040683,-501.93276983,0.0001289,2]
[406680770,1772073040693,-500.0,0.0001289,2]
[406680771,1772073040703,-500.0,0.0001289,2]
[406680772,1772073040712,-500.0,0.0001289,2]
[406680773,1772073040722,-500.0,0.0001289,2]
[406680774,1772073040731,-500.0,0.0001289,2]
[406680775,1772073040741,-514.5742252,0.0001289,2]
[406680776,1772073040750,-506.48924267,0.0001289,2]
[406680777,1772073040760,-517.56895491,0.0001289,2]
[406680778,1772073040769,-23740.0,0.000129,2]
[406680779,1772073040779,-152.0,0.00012966,10]
[406680780,1772073040788,-287.61899177,0.00013142,2]
[406680781,1772073040798,-152.0,0.00013146,11]
[406680782,1772073040808,-5531.0,0.000132,3]
[406680783,1772073040818,-18457.91106556,0.00013212,2]
[406680784,1772073040828,-3342.45896472,0.00013212,2]
[406680785,1772073040837,-5750.26869106,0.00013309,2]
[406680786,1772073040847,-152.0,0.00013325,12]
[406680787,1772073040858,-1930.28357428,0.00013396,2]
[406680788,1772073040867,-3240.0,0.00013425,2]
[406680789,1772073040877,-155.0,0.00013464,2]
[406680790,1772073040887,-152.0,0.00013505,13]
[406680791,1772073041031,-5531.0,0.000136,5]
[406680792,1772073041040,-152.0,0.00013685,14]
[406680793,1772073041051,-330.46278765,0.0001369,2]
[406680794,1772073041061,-500.0,0.00013698,2]
[406680795,1772073041070,-500.0,0.00013698,2]
[406680796,1772073041079,-500.0,0.00013698,2]
[406680797,1772073041088,-500.0,0.00013698,2]
[406680798,1772073041098,-500.0,0.00013698,2]
[406680799,1772073041108,-500.0,0.00013698,2]
[406680800,1772073041119,-500.0,0.00013698,2]
[406680801,1772073041128,-500.0,0.00013698,2]
[406680802,1772073041138,-500.0,0.00013698,2]
[406680803,1772073041149,-500.0,0.00013698,2]
[406680804,1772073041160,-500.0,0.00013698,2]
[406680805,1772073041169,-500.0,0.00013698,2]
[406680806,1772073041179,-500.0,0.00013698,2]
[406680807,1772073041188,-500.0,0.00013698,2]
[406680808,1772073041198,-500.0,0.00013698,2]
[406680809,1772073041207,-500.0,0.00013698,2]
[406680810,1772073041216,-500.0,0.00013698,2]
[406680811,1772073041225,-500.0,0.00013698,2]
[406680812,1772073041235,-500.0,0.00013698,2]
[406680813,1772073041244,-500.0,0.00013698,2]
[406680814,1772073041254,-500.0,0.00013698,2]
[406680815,1772073041263,-500.0,0.00013698,2]
[406680816,1772073041273,-500.0,0.00013698,2]
[406680817,1772073041282,-500.0,0.00013698,2]
[406680818,1772073041292,-500.0,0.00013698,2]
[406680819,1772073041302,-500.0,0.00013698,2]
[406680820,1772073041311,-500.0,0.00013698,2]
[406680821,1772073041320,-500.0,0.00013698,2]
[406680822,1772073041330,-368.2260392,0.00013698,2]
[406680823,1772073041339,-500.0,0.00013698,2]
[406680824,1772073041349,-268.69007129,0.00013698,2]
[406680825,1772073041358,-500.0,0.00013698,2]
[406680826,1772073041367,-500.0,0.00013698,2]
[406680827,1772073041377,-568.60354988,0.00013698,2]
[406680828,1772073041386,-500.0,0.00013698,2]
[406680829,1772073041396,-500.0,0.00013698,2]
[406680830,1772073041405,-500.0,0.00013698,2]
[406680831,1772073041415,-500.0,0.00013698,2]
[406680832,1772073041424,-500.0,0.00013698,2]
[406680833,1772073041435,-500.0,0.00013698,2]
[406680834,1772073041444,-500.0,0.00013698,2]
[406680835,1772073041453,-500.0,0.00013698,2]
[406680836,1772073041462,-500.0,0.00013698,2]
[406680837,1772073041471,-500.83672935,0.00013698,2]
[406680838,1772073041480,-500.0,0.00013698,2]
[406680839,1772073041490,-500.0,0.00013698,2]
[406680840,1772073041499,-500.0,0.00013698,2]
[406680841,1772073041509,-269.57915282,0.00013698,2]
[406680842,1772073041518,-500.0,0.00013698,2]
[406680843,1772073041527,-500.0,0.00013698,2]
[406680844,1772073041536,-467.36158262,0.00013698,2]
[406680845,1772073041546,-500.0,0.00013698,2]
[406680846,1772073041555,-405.62075362,0.00013698,2]
[406680847,1772073041566,-500.0,0.00013698,2]
[406680848,1772073041576,-500.0,0.00013698,2]
[406680849,1772073041585,-500.0,0.00013698,2]
[406680850,1772073041594,-500.0,0.00013698,2]
[406680851,1772073041604,-500.0,0.00013698,2]
[406680852,1772073041613,-500.0,0.00013698,2]
[406680853,1772073041622,-500.0,0.00013698,2]
[406680854,1772073041631,-500.0,0.00013698,2]
[406680855,1772073041641,-500.0,0.00013698,2]
[406680856,1772073041652,-500.0,0.00013698,2]
[406680857,1772073041662,-500.0,0.00013698,2]
[406680858,1772073041675,-500.0,0.00013698,2]
[406680859,1772073041684,-500.0,0.00013698,2]
[406680860,1772073041693,-500.0,0.00013698,2]
[406680861,1772073041703,-500.0,0.00013698,2]
[406680862,1772073041712,-500.0,0.00013698,2]
[406680863,1772073041721,-500.0,0.00013698,2]
[406680864,1772073041731,-500.0,0.00013698,2]
[406680865,1772073041740,-409.20397161,0.00013698,2]
[406680866,1772073041749,-271.25,0.00013699,2]
[406680867,1772073041758,-226.04,0.00013699,2]
[406680868,1772073041768,-188.37,0.00013699,2]
[406680869,1772073041777,-156.97,0.00013699,2]
[406680870,1772073041786,-784.9,0.00013699,2]
[406680871,1772073041795,-500.0,0.00013699,2]
[406680872,1772073041804,-500.0,0.00013699,2]
[406680873,1772073041814,-500.0,0.00013699,2]
[406680874,1772073041823,-163.81123118,0.00013699,2]
[406680875,1772073041832,-500.0,0.00013699,2]
[406680876,1772073041842,-500.0,0.00013699,2]
[406680877,1772073041852,-500.0,0.00013699,2]
[406680878,1772073041862,-500.0,0.00013699,2]
[406680879,1772073041871,-500.0,0.00013699,2]
[406680880,1772073041880,-500.0,0.00013699,2]
[406680881,1772073041890,-500.0,0.00013699,2]
[406680882,1772073041900,-162.12539331,0.00013699,2]
[406680883,1772073041910,-500.0,0.00013699,2]
[406680884,1772073041920,-161.18283823,0.00013699,2]
[406680885,1772073041929,-500.0,0.00013699,2]
[406680886,1772073041939,-500.0,0.00013699,2]
[406680887,1772073041948,-500.0,0.00013699,2]
[406680888,1772073041957,-500.0,0.00013699,2]
[406680889,1772073041966,-279.20657511,0.00013699,2]